fUST/lending_fUST_20250701
["ID","MTS","AMOUNT","RATE_DAILY","PERIOD"]
[368729367,1751332259761,-1000.0,0.00019921,2]
[368729368,1751332259771,-1000.0,0.00019921,2]
[368729369,1751332259780,-1000.0,0.00019921,2]
[368729370,1751332259790,-582.93,0.00019965,2]
[368729371,1751332259799,-460.0,0.00019965,2]
[368729372,1751332259809,-460.0,0.00019965,2]
[368729373,1751332259818,-460.0,0.00019965,2]
[368729374,1751332259828,-460.0,0.00019965,2]
[368729375,1751332259926,-460.0,0.00019965,2]
[368729376,1751332259946,-460.0,0.00019965,2]
[368729377,1751332259956,-460.0,0.00019965,2]
[368729378,1751332259966,-460.0,0.00019965,2]
[368729379,1751332259976,-460.0,0.00019965,2]
[368729380,1751332259985,-906.96,0.00019965,2]
[368729381,1751332259995,-366.8,0.00019965,2]
[368729382,1751332260005,-460.0,0.00019965,2]
[368729383,1751332260015,-484.17,0.00019965,2]
[368729384,1751332260025,-460.0,0.00019965,2]
[368729385,1751332260036,-1093.26,0.00019965,2]
[368729386,1751332260045,-460.0,0.00019965,2]
[368729387,1751332260055,-592.4,0.00019965,2]
[368729388,1751332260066,-2875.12,0.00019965,2]
[368729389,1751332260076,-208.82,0.00019965,2]
[368729390,1751332260085,-500.83,0.00019965,2]
[368729391,1751332260095,-460.0,0.00019965,2]
[368729392,1751332260105,-990.63,0.00019965,2]
[368729393,1751332260116,-460.0,0.00019965,2]
[368729394,1751332260127,-460.0,0.00019965,2]
[368729395,1751332260137,-460.0,0.00019966,2]
[368729396,1751332260146,-460.0,0.00019966,2]
[368729397,1751332260156,-569.18,0.00019966,2]
[368729398,1751332260169,-460.0,0.00019966,2]
[368729399,1751332260179,-460.0,0.00019966,2]
[368729400,1751332260189,-460.0,0.00019966,2]
[368729401,1751332260198,-460.0,0.00019966,2]
[368729402,1751332260209,-581.18,0.00019966,2]
[368729403,1751332260219,-460.0,0.00019966,2]
[368729404,1751332260229,-565.35,0.00019966,2]
[368729405,1751332260240,-460.0,0.00019966,2]
[368729406,1751332260250,-460.0,0.00019966,2]
[368729407,1751332260260,-500.0,0.00019966,2]
[368729408,1751332260270,-176.32161786,0.00019966,2]
[368729409,1751332260281,-460.0,0.00019966,2]
[368729410,1751332260291,-460.0,0.00019966,2]
[368729411,1751332260301,-460.0,0.00019966,2]
[368729412,1751332260311,-196.2,0.00019967,2]
[368729413,1751332260320,-460.0,0.00019967,2]
[368729414,1751332260331,-4000.0,0.0002,4]
[368729415,1751332260341,-4426.35559076,0.00020029,2]
[368729416,1751332260350,-387.0,0.00020033,2]
[368729417,1751332260362,-460.0,0.00020066,2]
[368729418,1751332260372,-460.0,0.00020066,2]
[368729419,1751332260382,-563.4502782,0.00020066,2]
[368729420,1751332260392,-387.0,0.00020097,2]
[368729421,1751332260401,-2233.50489515,0.00020107,2]
[368729422,1751332260411,-460.0,0.00020116,2]
[368729423,1751332260420,-460.0,0.00020116,2]
[368729424,1751332260430,-474.63,0.00020116,2]
[368729425,1751332260439,-687.34,0.00020116,2]
[368729426,1751332260448,-460.0,0.00020116,2]
[368729427,1751332260459,-460.0,0.00020127,2]
[368729428,1751332260468,-460.0,0.00020128,2]
[368729429,1751332260478,-460.0,0.00020129,2]
[368729430,1751332260488,-460.0,0.00020129,2]
[368729431,1751332260497,-460.0,0.00020129,2]
[368729432,1751332260507,-1265.7,0.00020129,2]
[368729433,1751332260516,-460.0,0.00020129,2]
[368729434,1751332260526,-1089.75,0.00020129,2]
[368729435,1751332260535,-418.01,0.00020129,2]
[368729436,1751332260545,-460.0,0.00020129,2]
[368729437,1751332260555,-1758.82,0.00020129,2]
[368729438,1751332260565,-460.0,0.00020129,2]
[368729439,1751332260575,-1505.14,0.00020129,2]
[368729440,1751332260585,-2118.34,0.00020129,2]
[368729441,1751332260594,-581.29,0.00020129,2]
[368729442,1751332260604,-638.88,0.00020129,2]
[368729443,1751332260615,-596.45,0.00020129,2]
[368729444,1751332260625,-460.0,0.00020129,2]
[368729445,1751332260634,-460.0,0.00020129,2]
[368729446,1751332260644,-460.0,0.00020129,2]
[368729447,1751332260653,-460.0,0.00020129,2]
[368729448,1751332260663,-460.0,0.00020137,2]
[368729449,1751332260673,-460.0,0.00020137,2]
[368729450,1751332260683,-460.0,0.00020137,2]
[368729451,1751332260692,-460.0,0.00020137,2]
[368729452,1751332260703,-603.02,0.00020137,2]
[368729453,1751332260712,-460.0,0.00020137,2]
[368729454,1751332260723,-460.0,0.00020137,2]
[368729455,1751332260734,-460.0,0.00020137,2]
[368729456,1751332260744,-1466.53,0.00020137,2]
[368729457,1751332260754,-515.25,0.00020137,2]
[368729458,1751332260764,-460.0,0.00020137,2]
[368729459,1751332260774,-460.0,0.00020137,2]
[368729460,1751332260784,-289.43,0.00020137,2]
[368729461,1751332260794,-460.0,0.00020137,2]
[368729462,1751332260804,-460.0,0.00020137,2]
[368729463,1751332260814,-460.0,0.00020137,2]
[368729464,1751332260824,-460.0,0.00020137,2]
[368729465,1751332260834,-460.0,0.00020137,2]
[368729466,1751332260844,-460.0,0.00020137,2]
[368729467,1751332260854,-460.0,0.0002014,2]
[368729468,1751332260867,-160.23,0.0002014,2]
[368729469,1751332260877,-460.0,0.0002014,2]
[368729470,1751332260887,-460.0,0.0002014,2]
[368729471,1751332260897,-571.65,0.0002014,2]
[368729472,1751332260907,-2087.38,0.0002014,2]
[368729473,1751332260917,-460.0,0.0002014,2]
[368729474,1751332260927,-499.01,0.0002014,2]
[368729475,1751332260936,-710.38,0.0002014,2]
[368729476,1751332260946,-836.88,0.0002014,2]
[368729477,1751332260955,-473.37,0.0002014,2]
[368729478,1751332260965,-420.0,0.00020158,2]
[368729479,1751332260974,-403.0,0.00020158,2]
[368729480,1751332260984,-387.0,0.00020161,2]
[368729481,1751332260993,-313.954531,0.00020187,2]
[368729482,1751332261003,-460.0,0.00020239,2]
[368729483,1751332261013,-460.0,0.00020239,2]
[368729484,1751332261022,-460.0,0.00020239,2]
[368729485,1751332261032,-460.0,0.00020239,2]
[368729486,1751332261042,-460.0,0.00020239,2]
[368729487,1751332261051,-460.0,0.00020239,2]
[368729488,1751332261061,-317.64,0.00020239,2]
[368729489,1751332261071,-460.0,0.00020239,2]
[368729490,1751332261080,-460.0,0.00020239,2]
[368729491,1751332261090,-906.96,0.00020239,2]
[368729492,1751332261100,-460.0,0.00020239,2]
[368729493,1751332261110,-1093.26,0.00020239,2]
[368729494,1751332261119,-460.0,0.00020239,2]
[368729495,1751332261129,-2875.12,0.00020239,2]
[368729496,1751332261139,-460.0,0.00020239,2]
[368729497,1751332261149,-990.63,0.00020239,2]
[368729498,1751332261161,-476.34,0.00020239,2]
[368729499,1751332261173,-460.0,0.00020239,2]
[368729500,1751332261183,-174.06,0.0002024,2]
[368729501,1751332261193,-460.0,0.0002024,2]
[368729502,1751332261203,-460.0,0.0002024,2]
[368729503,1751332261213,-607.4,0.0002024,2]
[368729504,1751332261222,-567.86,0.0002024,2]
[368729505,1751332261309,-460.0,0.0002024,2]
[368729506,1751332261320,-460.0,0.0002024,2]
[368729507,1751332261329,-580.0,0.0002024,2]
[368729508,1751332261339,-951.0,0.00020257,2]
[368729509,1751332261348,-460.0,0.0002034,2]
[368729510,1751332261358,-270.57,0.0002034,2]
[368729511,1751332261368,-500.0,0.00020343,2]
[368729512,1751332261378,-2233.50489515,0.00020348,3]
[368729513,1751332261388,-158.984762,0.00020356,2]
[368729514,1751332261397,-401.52,0.0002039,2]
[368729515,1751332261407,-460.0,0.0002039,2]
[368729516,1751332261417,-687.34,0.0002039,2]
[368729517,1751332261427,-460.0,0.00020401,2]
[368729518,1751332261436,-460.0,0.00020402,2]
[368729519,1751332261446,-460.0,0.00020403,2]
[368729520,1751332261455,-460.0,0.00020403,2]
[368729521,1751332261464,-513.50576798,0.00020403,2]
[368729522,1751332261474,-1265.7,0.00020403,2]
[368729523,1751332261483,-460.0,0.00020403,2]
[368729524,1751332261494,-1089.75,0.00020403,2]
[368729525,1751332261504,-460.0,0.00020403,2]
[368729526,1751332261513,-1758.82,0.00020403,2]
[368729527,1751332261523,-398.61,0.00020403,2]
[368729528,1751332261532,-1505.14,0.00020403,2]
[368729529,1751332261541,-2118.34,0.00020403,2]
[368729530,1751332261551,-638.88,0.00020403,2]
[368729531,1751332261560,-596.45,0.00020403,2]
[368729532,1751332261570,-460.0,0.00020403,2]
[368729533,1751332261580,-460.0,0.00020403,2]
[368729534,1751332261589,-460.0,0.00020403,2]
[368729535,1751332261599,-354.06,0.00020403,2]
[368729536,1751332261609,-245.86,0.00020411,2]
[368729537,1751332261618,-603.3,0.00020411,2]
[368729538,1751332261629,-460.0,0.00020411,2]
[368729539,1751332261638,-460.0,0.00020411,2]
[368729540,1751332261648,-460.0,0.00020411,2]
[368729541,1751332261657,-460.0,0.00020411,2]
[368729542,1751332261667,-460.0,0.00020411,2]
[368729543,1751332261677,-1466.53,0.00020411,2]
[368729544,1751332261686,-380.77,0.00020411,2]
[368729545,1751332261696,-503.31,0.00020411,2]
[368729546,1751332261706,-460.0,0.00020411,2]
[368729547,1751332261716,-460.0,0.00020411,2]
[368729548,1751332261725,-213.49,0.00020411,2]
[368729549,1751332261734,-193.73,0.00020411,2]
[368729550,1751332261744,-219.77,0.00020411,2]
[368729551,1751332261753,-310.05,0.00020411,2]
[368729552,1751332261762,-460.0,0.00020414,2]
[368729553,1751332261773,-460.0,0.00020414,2]
[368729554,1751332261782,-460.0,0.00020414,2]
[368729555,1751332261792,-571.65,0.00020414,2]
[368729556,1751332261801,-2087.38,0.00020414,2]
[368729557,1751332261812,-460.0,0.00020414,2]
[368729558,1751332261822,-499.01,0.00020414,2]
[368729559,1751332261831,-710.38,0.00020414,2]
[368729560,1751332261840,-836.88,0.00020414,2]
[368729561,1751332261850,-473.37,0.00020414,2]
[368729562,1751332261860,-1500.0,0.00020468,2]
[368729563,1751332261869,-1500.0,0.00020468,2]
[368729564,1751332261879,-627.19226716,0.00020468,2]
[368729565,1751332261889,-114813.1250614,0.000205,5]
[368729566,1751332261899,-449.94,0.00020504,2]
[368729567,1751332261909,-460.0,0.00020513,2]
[368729568,1751332261918,-460.0,0.00020513,2]
[368729569,1751332261928,-507.5,0.00020513,2]
[368729570,1751332261938,-460.0,0.00020513,2]
[368729571,1751332261947,-460.0,0.00020513,2]
[368729572,1751332261957,-460.0,0.00020513,2]
[368729573,1751332261966,-460.0,0.00020513,2]
[368729574,1751332261975,-460.0,0.00020513,2]
[368729575,1751332261985,-906.96,0.00020513,2]
[368729576,1751332261995,-460.0,0.00020513,2]
[368729577,1751332262005,-1093.26,0.00020513,2]
[368729578,1751332262015,-460.0,0.00020513,2]
[368729579,1751332262024,-2875.12,0.00020513,2]
[368729580,1751332262034,-517.04,0.00020513,2]
[368729581,1751332262044,-990.63,0.00020513,2]
[368729582,1751332262053,-460.0,0.00020513,2]
[368729583,1751332262063,-460.0,0.00020514,2]
[368729584,1751332262072,-489.33,0.00020514,2]
[368729585,1751332262081,-460.0,0.00020514,2]
[368729586,1751332262091,-500.0,0.00020547,14]
[368729587,1751332262101,-160.0,0.00020565,3]
[368729588,1751332262111,-4426.35559073,0.00020575,2]
[368729589,1751332262120,-2233.50489515,0.0002059,3]
[368729590,1751332262129,-1000.0,0.00020593,5]
[368729591,1751332262139,-399.0,0.000206,2]
[368729592,1751332262149,-160.0,0.000206,3]
[368729593,1751332262160,-2870.39,0.000206,2]
[368729594,1751332262171,-460.0,0.00020614,2]
[368729595,1751332262180,-687.34,0.00020664,2]
[368729596,1751332262191,-460.0,0.00020675,2]
[368729597,1751332262200,-460.0,0.00020676,2]
[368729598,1751332262210,-460.0,0.00020677,2]
[368729599,1751332262220,-1265.7,0.00020677,2]
[368729600,1751332262230,-460.0,0.00020677,2]
[368729601,1751332262241,-1089.75,0.00020677,2]
[368729602,1751332262250,-460.0,0.00020677,2]
[368729603,1751332262260,-1758.82,0.00020677,2]
[368729604,1751332262269,-1505.14,0.00020677,2]
[368729605,1751332262279,-2118.34,0.00020677,2]
[368729606,1751332262288,-638.88,0.00020677,2]
[368729607,1751332262298,-596.45,0.00020677,2]
[368729608,1751332262307,-328.24,0.00020677,2]
[368729609,1751332262316,-338.96,0.00020677,2]
[368729610,1751332262326,-460.0,0.00020677,2]
[368729611,1751332262336,-460.0,0.00020685,2]
[368729612,1751332262346,-460.0,0.00020685,2]
[368729613,1751332262356,-460.0,0.00020685,2]
[368729614,1751332262368,-460.0,0.00020685,2]
[368729615,1751332262377,-401.15169378,0.00020685,2]
[368729616,1751332262387,-1466.53,0.00020685,2]
[368729617,1751332262396,-460.0,0.00020685,2]
[368729618,1751332262406,-307.13,0.00020685,2]
[368729619,1751332262416,-460.0,0.00020688,2]
[368729620,1751332262426,-460.0,0.00020688,2]
[368729621,1751332262435,-460.0,0.00020688,2]
[368729622,1751332262445,-571.65,0.00020688,2]
[368729623,1751332262455,-2087.38,0.00020688,2]
[368729624,1751332262465,-608.07,0.00020688,2]
[368729625,1751332262556,-499.01,0.00020688,2]
[368729626,1751332262567,-710.38,0.00020688,2]
[368729627,1751332262577,-836.88,0.00020688,2]
[368729628,1751332262587,-473.37,0.00020688,2]
[368729629,1751332262597,-460.0,0.00020787,2]
[368729630,1751332262607,-250.02,0.00020787,2]
[368729631,1751332262619,-460.0,0.00020787,2]
[368729632,1751332262629,-460.0,0.00020787,2]
[368729633,1751332262638,-242.45,0.00020787,2]
[368729634,1751332262648,-305.34571877,0.00020787,2]
[368729635,1751332262658,-387.64,0.00020787,2]
[368729636,1751332262667,-906.96,0.00020787,2]
[368729637,1751332262677,-217.03,0.00020787,2]
[368729638,1751332262687,-1093.26,0.00020787,2]
[368729639,1751332262697,-460.0,0.00020787,2]
[368729640,1751332262707,-2875.12,0.00020787,2]
[368729641,1751332262716,-990.63,0.00020787,2]
[368729642,1751332262727,-460.0,0.00020787,2]
[368729643,1751332262737,-460.0,0.00020788,2]
[368729644,1751332262748,-314.895407,0.00020788,2]
[368729645,1751332262759,-12569.13231816,0.000208,3]
[368729646,1751332262770,-160.0,0.000208,3]
[368729647,1751332262780,-213.84631524,0.000208,3]
[368729648,1751332262790,-847.41730813,0.000208,3]
[368729649,1751332262800,-2233.50489515,0.00020831,4]
[368729650,1751332262811,-460.0,0.00020888,2]
[368729651,1751332262822,-687.34,0.00020938,2]
[368729652,1751332262833,-534.29,0.00020949,2]
[368729653,1751332262843,-460.0,0.00020951,2]
[368729654,1751332262853,-1265.7,0.00020951,2]
[368729655,1751332262863,-460.0,0.00020951,2]
[368729656,1751332262873,-1089.75,0.00020951,2]
[368729657,1751332262883,-460.0,0.00020951,2]
[368729658,1751332262893,-1758.82,0.00020951,2]
[368729659,1751332262902,-1505.14,0.00020951,2]
[368729660,1751332262912,-2118.34,0.00020951,2]
[368729661,1751332262921,-638.88,0.00020951,2]
[368729662,1751332262932,-596.45,0.00020951,2]
[368729663,1751332262941,-460.0,0.00020951,2]
[368729664,1751332262951,-460.0,0.00020959,2]
[368729665,1751332262961,-460.0,0.00020959,2]
[368729666,1751332262971,-189.21,0.00020959,2]
[368729667,1751332262981,-460.0,0.00020959,2]
[368729668,1751332262990,-1466.53,0.00020959,2]
[368729669,1751332263000,-460.0,0.00020959,2]
[368729670,1751332263009,-460.0,0.00020962,2]
[368729671,1751332263019,-460.0,0.00020962,2]
[368729672,1751332263030,-460.0,0.00020962,2]
[368729673,1751332263040,-571.65,0.00020962,2]
[368729674,1751332263049,-2087.38,0.00020962,2]
[368729675,1751332263059,-499.01,0.00020962,2]
[368729676,1751332263069,-710.38,0.00020962,2]
[368729677,1751332263078,-836.88,0.00020962,2]
[368729678,1751332263088,-473.37,0.00020962,2]
[368729679,1751332263098,-3000.0,0.00021,2]
[368729680,1751332263108,-3000.0,0.0002101,2]
[368729681,1751332263118,-500.0,0.00021016,2]
[368729682,1751332263128,-2000.0,0.00021016,2]
[368729683,1751332263139,-3000.0,0.0002102,2]
[368729684,1751332263148,-3686.940037,0.0002103,2]
[368729685,1751332263159,-460.0,0.00021061,2]
[368729686,1751332263171,-460.0,0.00021061,2]
[368729687,1751332263181,-460.0,0.00021061,2]
[368729688,1751332263191,-906.96,0.00021061,2]
[368729689,1751332263203,-1093.26,0.00021061,2]
[368729690,1751332263214,-460.0,0.00021061,2]
[368729691,1751332263223,-2875.12,0.00021061,2]
[368729692,1751332263233,-990.63,0.00021061,2]
[368729693,1751332263243,-460.0,0.00021061,2]
[368729694,1751332263253,-479.24370346,0.00021062,2]
[368729695,1751332263262,-2233.50489515,0.00021072,4]
[368729696,1751332263272,-4426.35559073,0.00021121,2]
[368729697,1751332263281,-460.0,0.00021162,2]
[368729698,1751332263291,-318.0,0.00021182,2]
[368729699,1751332263301,-318.0,0.00021182,2]
[368729700,1751332263311,-318.0,0.00021182,2]
[368729701,1751332263321,-1747.0,0.00021182,2]
[368729702,1751332263330,-1747.0,0.00021182,2]
[368729703,1751332263340,-223.0315306,0.00021212,2]
[368729704,1751332263350,-687.34,0.00021212,2]
[368729705,1751332263361,-328.53,0.00021225,2]
[368729706,1751332263370,-1265.7,0.00021225,2]
[368729707,1751332263380,-460.0,0.00021225,2]
[368729708,1751332263390,-1089.75,0.00021225,2]
[368729709,1751332263400,-460.0,0.00021225,2]
[368729710,1751332263409,-1758.82,0.00021225,2]
[368729711,1751332263419,-1505.14,0.00021225,2]
[368729712,1751332263428,-2118.34,0.00021225,2]
[368729713,1751332263438,-638.88,0.00021225,2]
[368729714,1751332263447,-596.45,0.00021225,2]
[368729715,1751332263457,-565.35,0.00021225,2]
[368729716,1751332263466,-460.0,0.00021233,2]
[368729717,1751332263476,-357.63,0.00021233,2]
[368729718,1751332263486,-460.0,0.00021233,2]
[368729719,1751332263496,-1466.53,0.00021233,2]
[368729720,1751332263506,-460.0,0.00021233,2]
[368729721,1751332263516,-399.0,0.00021234,2]
[368729722,1751332263525,-460.0,0.00021236,2]
[368729723,1751332263535,-460.0,0.00021236,2]
[368729724,1751332263544,-460.0,0.00021236,2]
[368729725,1751332263554,-571.65,0.00021236,2]
[368729726,1751332263564,-2087.38,0.00021236,2]
[368729727,1751332263573,-499.01,0.00021236,2]
[368729728,1751332263582,-710.38,0.00021236,2]
[368729729,1751332263592,-836.88,0.00021236,2]
[368729730,1751332263602,-473.37,0.00021236,2]
[368729731,1751332263611,-218.0,0.00021269,2]
[368729732,1751332263622,-500.0,0.00021285,2]
[368729733,1751332263632,-500.0,0.00021285,2]
[368729734,1751332263718,-501.58217862,0.00021285,2]
[368729735,1751332263728,-500.0,0.00021285,2]
[368729736,1751332263739,-194.43274689,0.00021285,2]
[368729737,1751332263749,-500.0,0.00021285,2]
[368729738,1751332263759,-500.0,0.00021285,2]
[368729739,1751332263768,-500.0,0.00021285,2]
[368729740,1751332263778,-500.0,0.00021285,2]
[368729741,1751332263787,-500.0,0.00021285,2]
[368729742,1751332263797,-500.0,0.00021285,2]
[368729743,1751332263807,-552.70320587,0.00021285,2]
[368729744,1751332263817,-500.0,0.00021285,2]
[368729745,1751332263827,-500.0,0.00021285,2]
[368729746,1751332263837,-500.0,0.00021285,2]
[368729747,1751332263846,-500.0,0.00021285,2]
[368729748,1751332263856,-500.0,0.00021285,2]
[368729749,1751332263866,-500.0,0.00021285,2]
[368729750,1751332263876,-500.0,0.00021285,2]
[368729751,1751332263886,-502.90420814,0.00021285,2]
[368729752,1751332263896,-600.0,0.00021285,2]
[368729753,1751332263905,-500.0,0.00021285,2]
[368729754,1751332263915,-2233.50489515,0.00021314,5]
[368729755,1751332263924,-460.0,0.00021335,2]
[368729756,1751332263934,-460.0,0.00021335,2]
[368729757,1751332263945,-460.0,0.00021335,2]
[368729758,1751332263955,-906.96,0.00021335,2]
[368729759,1751332263964,-1093.26,0.00021335,2]
[368729760,1751332263975,-460.0,0.00021335,2]
[368729761,1751332263984,-2875.12,0.00021335,2]
[368729762,1751332263994,-990.63,0.00021335,2]
[368729763,1751332264004,-375.06,0.00021335,2]
[368729764,1751332264014,-160.0,0.00021387,4]
[368729765,1751332264024,-160.0,0.00021387,5]
[368729766,1751332264033,-460.0,0.00021436,2]
[368729767,1751332264044,-687.34,0.00021486,2]
[368729768,1751332264054,-1265.7,0.00021499,2]
[368729769,1751332264063,-460.0,0.00021499,2]
[368729770,1751332264073,-1089.75,0.00021499,2]
[368729771,1751332264083,-386.56,0.00021499,2]
[368729772,1751332264093,-1758.82,0.00021499,2]
[368729773,1751332264102,-1505.14,0.00021499,2]
[368729774,1751332264112,-2118.34,0.00021499,2]
[368729775,1751332264121,-638.88,0.00021499,2]
[368729776,1751332264131,-596.45,0.00021499,2]
[368729777,1751332264140,-1001.263524,0.000215,2]
[368729778,1751332264150,-460.0,0.00021507,2]
[368729779,1751332264159,-460.0,0.00021507,2]
[368729780,1751332264172,-1466.53,0.00021507,2]
[368729781,1751332264182,-460.0,0.00021507,2]
[368729782,1751332264192,-460.0,0.0002151,2]
[368729783,1751332264201,-460.0,0.0002151,2]
[368729784,1751332264213,-460.0,0.0002151,2]
[368729785,1751332264237,-571.65,0.0002151,2]
[368729786,1751332264256,-2087.38,0.0002151,2]
[368729787,1751332264277,-499.01,0.0002151,2]
[368729788,1751332264301,-710.38,0.0002151,2]
[368729789,1751332264322,-836.88,0.0002151,2]
[368729790,1751332264342,-473.37,0.0002151,2]
[368729791,1751332264364,-150.0,0.00021539,2]
[368729792,1751332264380,-966.0,0.00021539,2]
[368729793,1751332264398,-670.0,0.00021539,2]
[368729794,1751332264419,-2151.0,0.00021539,2]
[368729795,1751332264441,-419.262,0.00021539,2]
[368729796,1751332264461,-423.35,0.00021539,2]
[368729797,1751332264477,-2233.50489515,0.00021555,5]
[368729798,1751332264497,-2500.0,0.00021564,2]
[368729799,1751332264512,-151.0,0.00021578,5]
[368729800,1751332264530,-2870.39,0.000216,2]
[368729801,1751332264545,-429.92,0.00021609,2]
[368729802,1751332264562,-460.0,0.00021609,2]
[368729803,1751332264578,-365.97,0.00021609,2]
[368729804,1751332264595,-906.96,0.00021609,2]
[368729805,1751332264611,-1093.26,0.00021609,2]
[368729806,1751332264628,-460.0,0.00021609,2]
[368729807,1751332264645,-2875.12,0.00021609,2]
[368729808,1751332264661,-990.63,0.00021609,2]
[368729809,1751332264678,-4292.21549551,0.00021644,2]
[368729810,1751332264694,-4000.0,0.00021667,4]
[368729811,1751332264710,-4426.35559073,0.00021667,2]
[368729812,1751332264727,-399.0,0.00021686,2]
[368729813,1751332264743,-159.266168,0.00021699,2]
[368729814,1751332264760,-575.2177202,0.00021699,2]
[368729815,1751332264777,-460.0,0.0002171,2]
[368729816,1751332264794,-2188.0,0.00021747,2]
[368729817,1751332264811,-687.34,0.0002176,2]
[368729818,1751332264827,-1265.7,0.00021773,2]
[368729819,1751332264845,-460.0,0.00021773,2]
[368729820,1751332264863,-1089.75,0.00021773,2]
[368729821,1751332264879,-1758.82,0.00021773,2]
[368729822,1751332264895,-1505.14,0.00021773,2]
[368729823,1751332264914,-2118.34,0.00021773,2]
[368729824,1751332264931,-638.88,0.00021773,2]
[368729825,1751332264946,-596.45,0.00021773,2]
[368729826,1751332264963,-460.0,0.00021781,2]
[368729827,1751332264981,-531.58,0.00021781,2]
[368729828,1751332264997,-1466.53,0.00021781,2]
[368729829,1751332265016,-460.0,0.00021781,2]
[368729830,1751332265033,-460.0,0.00021784,2]
[368729831,1751332265050,-460.0,0.00021784,2]
[368729832,1751332265067,-525.67,0.00021784,2]
[368729833,1751332265083,-571.65,0.00021784,2]
[368729834,1751332265100,-2087.38,0.00021784,2]
[368729835,1751332265229,-499.01,0.00021784,2]
[368729836,1751332265247,-710.38,0.00021784,2]
[368729837,1751332265257,-836.88,0.00021784,2]
[368729838,1751332265267,-473.37,0.00021784,2]
[368729839,1751332265276,-2233.50489515,0.00021797,6]
[368729840,1751332265286,-1000.0,0.00021833,2]
[368729841,1751332265296,-833.49808892,0.00021833,2]
[368729842,1751332265306,-1000.0,0.00021833,2]
[368729843,1751332265316,-500.74369251,0.00021833,2]
[368729844,1751332265327,-1000.0,0.00021833,2]
[368729845,1751332265337,-588.19225502,0.00021833,2]
[368729846,1751332265347,-1000.0,0.00021833,2]
[368729847,1751332265357,-1003.46995148,0.00021833,2]
[368729848,1751332265367,-1000.0,0.00021833,2]
[368729849,1751332265376,-1000.0,0.00021833,2]
[368729850,1751332265386,-1000.0,0.00021833,2]
[368729851,1751332265396,-1000.0,0.00021833,2]
[368729852,1751332265405,-1200.0,0.00021833,2]
[368729853,1751332265414,-1000.0,0.00021833,2]
[368729854,1751332265423,-800.0,0.00021843,2]
[368729855,1751332265433,-151.0,0.00021881,5]
[368729856,1751332265443,-460.0,0.00021883,2]
[368729857,1751332265452,-906.96,0.00021883,2]
[368729858,1751332265461,-1093.26,0.00021883,2]
[368729859,1751332265471,-460.0,0.00021883,2]
[368729860,1751332265482,-2875.12,0.00021883,2]
[368729861,1751332265493,-990.63,0.00021883,2]
[368729862,1751332265503,-399.0,0.00021894,2]
[368729863,1751332265513,-500.0,0.00021917,2]
[368729864,1751332265525,-500.0,0.00021917,2]
[368729865,1751332265535,-500.0,0.00021917,2]
[368729866,1751332265544,-500.0,0.00021917,2]